[Event "12th Asrian Memorial 2019"]
[Site "Yerevan"]
[Date "2019.06.18"]
[Round "8.8"]
[White "Der Manuelian, Haik"]
[Black "Petrosian, Tigran L."]
[Result "0-1"]
[ECO "B06"]
[WhiteElo "2309"]
[BlackElo "2612"]
[Annotator "RC"]
[PlyCount "170"]
[EventDate "2019.06.11"]
[EventType "swiss"]
[EventCountry "ARM"]
[SourceTitle "playchess.com"]
[Source "ChessBase"]
[SourceQuality "1"]
[TimeControl "40/5400+30:1800+30"]

1. d4 {[%emt 0:00:00]} g6 {[%emt 0:02:59]} 2. e4 {[%emt 0:00:00]} Bg7 {[%emt 0:00:06]} 3. Nc3 {[%emt 0:00:09]} c6 {[%emt 0:01:45]} 4. Nf3 {[%emt 0:01:12]} d6 {[%emt 0:00:58]} 5. Be2 {[%emt 0:02:37]} Nf6 {[%emt 0:00:13]} 6. O-O {[%emt 0:01:48]} O-O {[%emt 0:00:36]} 7. h3 {[%emt 0:07:49]} Nbd7 {[%emt 0:06:15]} 8. Be3 {[%emt 0:11:29]} Re8 {[%emt 0:03:03]} 9. e5 {[%emt 0:07:08]} dxe5 {[%emt 0:16:44]} 10. dxe5 {[%emt 0:01:01]} Nd5 {[%emt 0:00:13]} 11. Nxd5 {[%emt 0:01:41]} cxd5 {[%emt 0:00:08]} 12. Qxd5 {[%emt 0:13:54]} Nxe5 {[%emt 0:00:07]} 13. Qxd8 {[%emt 0:05:23]} Rxd8 {[%emt 0:00:10]} 14. Rad1 {[%emt 0:06:50]} Bf5 {[%emt 0:12:56]} 15. Nxe5 {[%emt 0:02:52]} Bxe5 {[%emt 0:00:20]} 16. c3 {[%emt 0:03:07]} b6 {[%emt 0:02:41]} 17. Rxd8+ {[%emt 0:01:53]} Rxd8 {[%emt 0:00:07]} 18. Rd1 {[%emt 0:00:03]} Rc8 {[%emt 0:04:23]} 19. Bg4 {[%emt 0:03:51]} Bd6 {[%emt 0:07:32]} 20. Bxf5 {[%emt 0:01:02]} gxf5 {[%emt 0:00:56]} 21. Rd5 {[%emt 0:06:39]} f4 {[%emt 0:00:25]} 22. Bd4 {[%emt 0:01:10]} Kf8 {[%emt 0:05:05]} 23. Kf1 {[%emt 0:01:46]} Rc6 {[%emt 0:05:23]} 24. Be5 {[%emt 0:01:50]} Bxe5 {[%emt 0:00:21]} 25. Rxe5 {[%emt 0:00:01]} Rd6 {[%emt 0:00:43]} 26. Ke2 {[%emt 0:00:58]} f6 {[%emt 0:00:21]} 27. Re4 {[%emt 0:01:22]} e5 {[%emt 0:00:15]} 28. Rc4 {[%emt 0:01:16]} Rd7 {[%emt 0:00:11]} 29. Rc6 {[%emt 0:04:05]} Kf7 {[%emt 0:00:13]} 30. c4 {[%emt 0:01:23]} Kg6 {[%emt 0:01:00]} 31. c5 {[%emt 0:00:27]} bxc5 {[%emt 0:00:26]} 32. Rxc5 {[%emt 0:00:04]} Kf5 {[%emt 0:00:23]} 33. Rc4 {[%emt 0:03:47]} a5 {[%emt 0:02:14]} 34. b3 {[%emt 0:01:45]} Rb7 {[%emt 0:02:16]} 35. Ra4 {[%emt 0:05:15]} Rb5 {[%emt 0:00:05]} 36. Rc4 {[%emt 0:00:01]} h5 {[%emt 0:00:18]} 37. Rc2 {[%emt 0:01:39]} a4 {[%emt 0:01:04]} 38. bxa4 {[%emt 0:00:34]} Rb4 {[%emt 0:00:03]} 39. a3 {[%emt 0:00:53]} Rxa4 {[%emt 0:00:29]} 40. Ra2 {[%emt 0:00:00]} e4 {[%emt 0:00:00]} 41. Ra1 {[%emt 0:19:45]} h4 {[%emt 0:10:25]} 42. Ra2 {[%emt 0:01:36]} Ke6 {[%emt 0:00:54]} 43. Ra1 {[%emt 0:01:17]} f5 {[%emt 0:00:12]} 44. Ra2 {[%emt 0:00:40]} Ke5 {[%emt 0:00:06]} 45. Ra1 {[%emt 0:02:09]} Kd5 {[%emt 0:05:57]} 46. Ra2 {[%emt 0:00:20]} Ra5 {[%emt 0:00:36]} 47. a4 {[%emt 0:00:54]} Kc4 {[%emt 0:00:37]} 48. Ra1 {[%emt 0:00:47]} Kb3 {[%emt 0:05:00]} 49. Rb1+ {[%emt 0:00:06]} Kc4 {[%emt 0:01:45]} 50. Rc1+ {[%emt 0:02:26]} Kd4 {[%emt 0:00:08]} 51. Ra1 {[%emt 0:01:33]} Ra6 {[%emt 0:02:11]} 52. Rd1+ {[%emt 0:03:02]} Ke5 {[%emt 0:06:02]} 53. Ra1 {[%emt 0:00:01]} Ra5 {[%emt 0:00:09]} 54. Ra2 {[%emt 0:00:36]} Kd4 {[%emt 0:00:04]} 55. Ra1 {[%emt 0:00:48]} Kc5 {[%emt 0:00:38]} 56. Rc1+ {[%emt 0:00:23]} Kd6 {[%emt 0:00:18]} 57. Ra1 {[%emt 0:00:07]} Kc6 {[%emt 0:00:11]} 58. Ra2 {[%emt 0:00:41]} Kb6 {[%emt 0:05:52]} 59. Rb2+ {[%emt 0:00:04]} Kc5 {[%emt 0:00:11]} 60. Rc2+ {[%emt 0:00:41]} Kb4 {[%emt 0:00:59]} 61. Rb2+ {[%emt 0:00:07]} Kc4 {[%emt 0:00:09]} 62. Rc2+ {[%emt 0:00:26]} Kd4 {[%emt 0:01:12]} 63. Ra2 {[%emt 0:00:26]} Kc3 {[%emt 0:00:04]} 64. Ra1 {[%emt 0:00:15]} Kc2 {[%emt 0:00:14]} 65. Ke1 {[%emt 0:02:37]} Kb2 {[%emt 0:13:41]} 66. Rd1 {[%emt 0:00:01]} Rc5 {[%emt 0:00:51]} 67. Rd8 {[%emt 0:01:01]} Kc3 {[%emt 0:01:47]} 68. Ke2 {[%emt 0:00:48]} Ra5 {[%emt 0:00:29]} 69. Rc8+ {[%emt 0:00:16]} Kd4 {[%emt 0:00:36]} 70. Rd8+ {[%emt 0:00:10]} Ke5 {[%emt 0:00:05]} 71. Re8+ {[%emt 0:01:27]} Kf6 {[%emt 0:00:05]} 72. Rf8+ {[%emt 0:00:24]} Kg7 {[%emt 0:00:13]} 73. Rb8 {[%emt 0:00:47]} Rxa4 {[%emt 0:00:05]} 74. Rb6 {[%emt 0:00:22]} Ra2+ {[%emt 0:00:16]} 75. Kf1 {[%emt 0:00:14]} Ra1+ {[%emt 0:00:05]} 76. Ke2 {[%emt 0:00:06]} Rg1 {[%emt 0:00:34]} 77. Rb7+ {[%emt 0:00:24]} Kg6 {[%emt 0:00:12]} 78. Rb6+ {[%emt 0:00:35]} Kg5 {[%emt 0:00:05]} 79. Rb8 {[%emt 0:00:03]} Rxg2 {[%emt 0:00:16]} 80. Kf1 {[%emt 0:00:10]} Rh2 {[%emt 0:02:26]} 81. Rb3 {[%emt 0:00:48]} f3 {[%emt 0:00:08]} 82. Kg1 {[%emt 0:00:03]} Rg2+ {[%emt 0:00:06]} 83. Kf1 {[%emt 0:00:05]} Kf4 {[%emt 0:00:08]} 84. Rb8 {[%emt 0:00:11]} Rg6 {[%emt 0:00:13]} 85. Rh8 {[%emt 0:00:04]} Ra6 {[%emt 0:00:06]} 0-1

[Event "12th Asrian Memorial 2019"]
[Site "Yerevan"]
[Date "2019.06.18"]
[Round "8.9"]
[White "Harutyunian, Tigran K."]
[Black "Dilanyan, Grigor"]
[Result "1-0"]
[ECO "A46"]
[WhiteElo "2552"]
[BlackElo "2294"]
[Annotator "ChessBase"]
[PlyCount "87"]
[EventDate "2019.06.11"]
[EventType "swiss"]
[EventCountry "ARM"]
[SourceTitle "playchess.com"]
[Source "ChessBase"]
[SourceQuality "1"]
[TimeControl "40/5400+30:1800+30"]

1. d4 {[%emt 0:00:00]} Nf6 {[%emt 0:00:09]} 2. Nf3 {[%emt 0:00:00]} e6 {[%emt 0:00:59]} 3. g3 {[%emt 0:00:48]} b5 {[%emt 0:07:32]} 4. Bg5 {[%emt 0:00:43]} Bb7 {[%emt 0:00:16]} 5. Nbd2 {[%emt 0:00:08]} Be7 {[%emt 0:00:36]} 6. e3 {[%emt 0:04:43]} a6 {[%emt 0:00:50]} 7. a4 {[%emt 0:07:44]} b4 {[%emt 0:03:29]} 8. Bg2 {[%emt 0:01:36]} h6 {[%emt 0:10:14]} 9. Bxf6 {[%emt 0:00:30]} Bxf6 {[%emt 0:00:02]} 10. c3 {[%emt 0:03:22]} a5 {[%emt 0:01:29]} 11. O-O {[%emt 0:00:38]} O-O {[%emt 0:00:42]} 12. Qc2 {[%emt 0:01:02]} d6 {[%emt 0:08:47]} 13. cxb4 {[%emt 0:08:27]} axb4 {[%emt 0:03:36]} 14. Rfc1 {[%emt 0:01:11]} c5 {[%emt 0:05:44]} 15. dxc5 {[%emt 0:06:46]} dxc5 {[%emt 0:00:21]} 16. Ng5 {[%emt 0:04:51]} hxg5 {[%emt 0:06:12]} 17. Bxb7 {[%emt 0:00:06]} Ra7 {[%emt 0:00:03]} 18. Bg2 {[%emt 0:00:48]} Nd7 {[%emt 0:00:53]} 19. Rd1 {[%emt 0:00:54]} Qb8 {[%emt 0:02:19]} 20. a5 {[%emt 0:07:50]} Qc7 {[%emt 0:11:31]} 21. a6 {[%emt 0:03:01]} Nb6 {[%emt 0:24:42]} 22. Bb7 {[%emt 0:00:45]} Be7 {[%emt 0:05:33]} 23. Nc4 {[%emt 0:01:45]} Rxb7 {[%emt 0:02:26]} 24. axb7 {[%emt 0:00:07]} Nxc4 {[%emt 0:01:26]} 25. Qxc4 {[%emt 0:00:30]} Qxb7 {[%emt 0:00:01]} 26. b3 {[%emt 0:00:43]} Qc7 {[%emt 0:00:45]} 27. Qe4 {[%emt 0:01:44]} g6 {[%emt 0:00:41]} 28. Ra6 {[%emt 0:00:49]} Rc8 {[%emt 0:01:57]} 29. Rxe6 {[%emt 0:01:42]} fxe6 {[%emt 0:00:19]} 30. Qxe6+ {[%emt 0:00:05]} Kf8 {[%emt 0:00:04]} 31. Rd7 {[%emt 0:00:07]} Qxd7 {[%emt 0:00:02]} 32. Qxd7 {[%emt 0:00:08]} Rd8 {[%emt 0:00:03]} 33. Qc6 {[%emt 0:01:47]} Rd3 {[%emt 0:02:04]} 34. Qf3+ {[%emt 0:00:16]} Ke8 {[%emt 0:00:30]} 35. Qe4 {[%emt 0:00:34]} Rd1+ {[%emt 0:00:35]} 36. Kg2 {[%emt 0:00:06]} Rd6 {[%emt 0:00:09]} 37. Qc4 {[%emt 0:01:09]} Rf6 {[%emt 0:00:52]} 38. e4 {[%emt 0:00:12]} Kf8 {[%emt 0:00:19]} 39. e5 {[%emt 0:00:17]} Rf5 {[%emt 0:00:13]} 40. Qe6 {[%emt 0:00:00]} g4 {[%emt 0:00:00]} 41. Qxg6 {[%emt 0:01:12]} Rxe5 {[%emt 0:01:00]} 42. Qxg4 {[%emt 0:00:13]} Re1 {[%emt 0:02:39]} 43. h4 {[%emt 0:00:19]} Kf7 {[%emt 0:02:14]} 44. h5 {[%emt 0:00:24]} 1-0

[Event "12th Asrian Memorial 2019"]
[Site "Yerevan"]
[Date "2019.06.18"]
[Round "8.10"]
[White "Vaganian, Rafael A"]
[Black "Basencyan, Mark"]
[Result "1-0"]
[ECO "E68"]
[WhiteElo "2526"]
[BlackElo "2154"]
[Annotator "ChessBase"]
[PlyCount "48"]
[EventDate "2019.06.11"]
[EventType "swiss"]
[EventCountry "ARM"]
[SourceTitle "playchess.com"]
[Source "ChessBase"]
[SourceQuality "1"]
[TimeControl "40/5400+30:1800+30"]

1. d4 {[%emt 0:00:00]} Nf6 {[%emt 0:00:00]} 2. Nf3 {[%emt 0:00:00]} g6 {[%emt 0:00:01]} 3. c4 {[%emt 0:00:02]} Bg7 {[%emt 0:00:14]} 4. g3 {[%emt 0:00:05]} O-O {[%emt 0:00:13]} 5. Bg2 {[%emt 0:00:06]} d6 {[%emt 0:00:07]} 6. Nc3 {[%emt 0:00:22]} Nbd7 {[%emt 0:00:15]} 7. O-O {[%emt 0:00:18]} e5 {[%emt 0:00:14]} 8. e4 {[%emt 0:00:40]} exd4 {[%emt 0:00:48]} 9. Nxd4 {[%emt 0:00:07]} Nc5 {[%emt 0:00:32]} 10. h3 {[%emt 0:00:38]} Re8 {[%emt 0:00:22]} 11. Re1 {[%emt 0:00:09]} a5 {[%emt 0:00:13]} 12. Qc2 {[%emt 0:03:03]} c6 {[%emt 0:29:33]} 13. Be3 {[%emt 0:00:33]} Qc7 {[%emt 0:02:05]} 14. Rad1 {[%emt 0:02:23]} Bd7 {[%emt 0:02:08]} 15. Nb3 {[%emt 0:02:38]} b6 {[%emt 0:27:20]} 16. Bf4 {[%emt 0:03:16]} Bf8 {[%emt 0:06:07]} 17. Nxc5 {[%emt 0:01:36]} bxc5 {[%emt 0:00:05]} 18. g4 {[%emt 0:00:06]} Bc8 {[%emt 0:11:35]} 19. Qd2 {[%emt 0:09:19]} Re6 {[%emt 0:00:58]} 20. Bg3 {[%emt 0:01:33]} Ba6 {[%emt 0:06:22]} 21. b3 {[%emt 0:04:40]} Rae8 {[%emt 0:00:19]} 22. f4 {[%emt 0:00:21]} Qe7 {[%emt 0:06:26]} 23. e5 {[%emt 0:01:20]} dxe5 {[%emt 0:03:16]} 24. fxe5 {[%emt 0:00:23]} Bc8 1-0

[Event "12th Asrian Memorial 2019"]
[Site "Yerevan"]
[Date "2019.06.18"]
[Round "8.11"]
[White "Gevorgyan, Maria"]
[Black "Gholami Orimi, Mahdi"]
[Result "0-1"]
[ECO "C51"]
[WhiteElo "2293"]
[BlackElo "2445"]
[Annotator "NA"]
[PlyCount "82"]
[EventDate "2019.06.11"]
[EventType "swiss"]
[EventCountry "ARM"]
[SourceTitle "playchess.com"]
[Source "ChessBase"]
[SourceQuality "1"]
[TimeControl "40/5400+30:1800+30"]

1. e4 {[%emt 0:00:00]} e5 {[%emt 0:00:00]} 2. Nf3 {[%emt 0:00:00]} Nc6 {[%emt 0:00:00]} 3. Bc4 {[%emt 0:00:00]} Bc5 {[%emt 0:00:00]} 4. b4 {[%emt 0:00:00]} Bxb4 {[%emt 0:00:00]} 5. c3 {[%emt 0:00:00]} Bd6 {[%emt 0:00:27]} 6. d4 {[%emt 0:01:12]} Nf6 {[%emt 0:00:12]} 7. O-O {[%emt 0:00:48]} O-O {[%emt 0:00:46]} 8. Re1 {[%emt 0:00:52]} h6 {[%emt 0:02:22]} 9. Bd3 {[%emt 0:12:09]} Re8 {[%emt 0:04:55]} 10. Nbd2 {[%emt 0:02:27]} exd4 {[%emt 0:17:44]} 11. cxd4 {[%emt 0:00:44]} Bf8 {[%emt 0:01:31]} 12. e5 {[%emt 0:06:29]} Nd5 {[%emt 0:00:41]} 13. Qb3 {[%emt 0:01:46]} Nf4 {[%emt 0:01:35]} 14. Bc4 {[%emt 0:00:59]} d5 {[%emt 0:03:33]} 15. exd6 {[%emt 0:02:25]} Rxe1+ {[%emt 0:01:46]} 16. Nxe1 {[%emt 0:00:04]} Nxd4 {[%emt 0:00:44]} 17. Bxf7+ {[%emt 0:06:00]} Kh8 {[%emt 0:00:14]} 18. Qe3 {[%emt 0:01:29]} Bxd6 {[%emt 0:13:54]} 19. Nc4 {[%emt 0:23:01]} Nfe2+ {[%emt 0:02:06]} 20. Kf1 {[%emt 0:12:30]} Bf4 {[%emt 0:00:59]} 21. Qa3 {[%emt 0:00:13]} Nxc1 {[%emt 0:04:06]} 22. Rxc1 {[%emt 0:00:21]} Bxc1 {[%emt 0:01:12]} 23. Qxc1 {[%emt 0:00:02]} Qe7 {[%emt 0:04:04]} 24. Qd2 {[%emt 0:06:41]} c5 {[%emt 0:02:17]} 25. Bh5 {[%emt 0:00:34]} Qh4 {[%emt 0:04:20]} 26. Bf7 {[%emt 0:00:26]} Qf6 {[%emt 0:03:11]} 27. Bh5 {[%emt 0:01:37]} Qa6 {[%emt 0:01:49]} 28. Bf7 {[%emt 0:01:41]} Be6 {[%emt 0:02:08]} 29. Bxe6 {[%emt 0:00:04]} Nxe6 {[%emt 0:00:06]} 30. Qc1 {[%emt 0:01:27]} Qxa2 {[%emt 0:01:59]} 31. Ne5 {[%emt 0:01:15]} Nd4 {[%emt 0:01:46]} 32. Qe3 {[%emt 0:04:50]} Kg8 {[%emt 0:01:29]} 33. f4 {[%emt 0:04:48]} Re8 {[%emt 0:01:32]} 34. Qe4 {[%emt 0:02:19]} Nc6 {[%emt 0:00:46]} 35. N1f3 {[%emt 0:01:02]} Nxe5 {[%emt 0:00:18]} 36. Nxe5 {[%emt 0:00:04]} Rd8 {[%emt 0:00:18]} 37. Ke1 {[%emt 0:06:09]} Qd2+ {[%emt 0:00:32]} 38. Kf1 {[%emt 0:00:07]} Qd1+ {[%emt 0:00:10]} 39. Kf2 {[%emt 0:00:05]} Qd4+ {[%emt 0:00:04]} 40. Kf3 {[%emt 0:00:00]} Qxe4+ {[%emt 0:00:00]} 41. Kxe4 {[%emt 0:00:17]} a5 {[%emt 0:00:26]} 0-1

[Event "12th Asrian Memorial 2019"]
[Site "Yerevan"]
[Date "2019.06.18"]
[Round "8.12"]
[White "Sargsyan, Tigran R."]
[Black "Yeremyan, Alen"]
[Result "1/2-1/2"]
[ECO "E92"]
[WhiteElo "2367"]
[BlackElo "2128"]
[Annotator "NA"]
[PlyCount "107"]
[EventDate "2019.06.11"]
[EventType "swiss"]
[EventCountry "ARM"]
[SourceTitle "playchess.com"]
[Source "ChessBase"]
[SourceQuality "1"]
[TimeControl "40/5400+30:1800+30"]

1. d4 {[%emt 0:00:00]} Nf6 {[%emt 0:00:00]} 2. c4 {[%emt 0:00:00]} g6 {[%emt 0:00:00]} 3. Nc3 {[%emt 0:00:00]} Bg7 {[%emt 0:00:01]} 4. e4 {[%emt 0:00:00]} d6 {[%emt 0:00:03]} 5. Nf3 {[%emt 0:00:00]} O-O {[%emt 0:00:19]} 6. Be2 {[%emt 0:00:11]} e5 {[%emt 0:00:33]} 7. d5 {[%emt 0:00:15]} a5 {[%emt 0:01:26]} 8. h3 {[%emt 0:00:47]} Na6 {[%emt 0:01:08]} 9. Bg5 {[%emt 0:02:57]} h6 {[%emt 0:01:18]} 10. Be3 {[%emt 0:00:58]} Nc5 {[%emt 0:05:26]} 11. Nd2 {[%emt 0:01:05]} Bd7 {[%emt 0:01:15]} 12. Qc2 {[%emt 0:02:03]} a4 {[%emt 0:02:34]} 13. g4 {[%emt 0:07:56]} Ne8 {[%emt 0:02:05]} 14. h4 {[%emt 0:05:18]} c6 {[%emt 0:06:42]} 15. h5 {[%emt 0:03:22]} g5 {[%emt 0:03:53]} 16. Bxc5 {[%emt 0:08:16]} dxc5 {[%emt 0:00:01]} 17. Nxa4 {[%emt 0:01:52]} cxd5 {[%emt 0:03:35]} 18. Nxc5 {[%emt 0:00:38]} dxe4 {[%emt 0:08:38]} 19. Nxd7 {[%emt 0:03:03]} Qxd7 {[%emt 0:00:02]} 20. Nxe4 {[%emt 0:01:14]} f5 {[%emt 0:03:26]} 21. gxf5 {[%emt 0:02:06]} Qxf5 {[%emt 0:00:53]} 22. c5 {[%emt 0:04:27]} Kh8 {[%emt 0:04:27]} 23. Bd3 {[%emt 0:17:34]} Qf4 {[%emt 0:05:17]} 24. Qe2 {[%emt 0:04:54]} Nf6 {[%emt 0:03:58]} 25. Nxf6 {[%emt 0:19:56]} Rxf6 {[%emt 0:02:51]} 26. O-O {[%emt 0:06:06]} Ra4 {[%emt 0:01:31]} 27. f3 {[%emt 0:02:03]} Qh4 {[%emt 0:03:51]} 28. Be4 {[%emt 0:00:49]} Qf4 {[%emt 0:10:02]} 29. b3 {[%emt 0:01:12]} Rd4 {[%emt 0:01:13]} 30. Rad1 {[%emt 0:02:38]} Rf8 {[%emt 0:00:45]} 31. Rxd4 {[%emt 0:00:48]} exd4 {[%emt 0:00:02]} 32. Bd3 {[%emt 0:01:12]} Be5 {[%emt 0:02:38]} 33. Rf2 {[%emt 0:00:38]} Qe3 {[%emt 0:08:41]} 34. Kg2 {[%emt 0:00:38]} Rd8 {[%emt 0:00:46]} 35. Bc2 {[%emt 0:00:57]} Kg7 {[%emt 0:03:03]} 36. Qd3 {[%emt 0:00:14]} Qxd3 {[%emt 0:00:53]} 37. Bxd3 {[%emt 0:00:00]} Kf6 {[%emt 0:00:15]} 38. Rc2 {[%emt 0:00:23]} Bf4 {[%emt 0:01:53]} 39. a4 {[%emt 0:00:58]} Re8 {[%emt 0:00:29]} 40. Be4 {[%emt 0:00:00]} g4 {[%emt 0:00:00]} 41. Rc4 {[%emt 0:08:46]} Be3 {[%emt 0:11:58]} 42. Bxb7 {[%emt 0:16:20]} gxf3+ {[%emt 0:05:20]} 43. Bxf3 {[%emt 0:02:20]} Ke5 {[%emt 0:00:04]} 44. c6 {[%emt 0:00:54]} Kd6 {[%emt 0:01:03]} 45. b4 {[%emt 0:01:43]} Rg8+ {[%emt 0:00:09]} 46. Kf1 {[%emt 0:00:17]} d3 {[%emt 0:00:58]} 47. Rg4 {[%emt 0:04:26]} Rxg4 {[%emt 0:00:30]} 48. Bxg4 {[%emt 0:00:01]} Kxc6 {[%emt 0:00:08]} 49. Bf5 {[%emt 0:01:23]} Bd2 {[%emt 0:03:12]} 50. b5+ {[%emt 0:00:14]} Kb6 {[%emt 0:00:05]} 51. Bxd3 {[%emt 0:00:02]} Bb4 {[%emt 0:00:14]} 52. Ke2 {[%emt 0:00:07]} Bc3 {[%emt 0:00:18]} 53. Ke3 {[%emt 0:00:10]} Bb4 {[%emt 0:00:15]} 54. Ke4 1/2-1/2

[Event "12th Asrian Memorial 2019"]
[Site "Yerevan"]
[Date "2019.06.18"]
[Round "8.13"]
[White "Baghdasaryan, Vahe"]
[Black "Aleksanyan, Davit"]
[Result "1-0"]
[ECO "C50"]
[WhiteElo "2357"]
[BlackElo "1626"]
[Annotator "NA"]
[PlyCount "59"]
[EventDate "2019.06.11"]
[EventType "swiss"]
[EventCountry "ARM"]
[SourceTitle "playchess.com"]
[Source "ChessBase"]
[SourceQuality "1"]
[TimeControl "40/5400+30:1800+30"]

1. e4 {[%emt 0:02:42]} e5 {[%emt 0:00:00]} 2. Nf3 {[%emt 0:00:11]} Nc6 {[%emt 0:00:00]} 3. Bc4 {[%emt 0:00:45]} Nf6 {[%emt 0:00:00]} 4. d3 {[%emt 0:00:06]} Bc5 {[%emt 0:00:02]} 5. O-O {[%emt 0:00:06]} O-O {[%emt 0:00:07]} 6. c3 {[%emt 0:00:10]} d6 {[%emt 0:00:28]} 7. Nbd2 {[%emt 0:00:33]} Ne7 {[%emt 0:03:34]} 8. d4 {[%emt 0:04:18]} exd4 {[%emt 0:00:33]} 9. cxd4 {[%emt 0:00:07]} Bb6 {[%emt 0:00:04]} 10. Bd3 {[%emt 0:01:45]} a6 {[%emt 0:03:48]} 11. Nc4 {[%emt 0:21:31]} Ba7 {[%emt 0:00:40]} 12. Bg5 {[%emt 0:00:16]} Ne8 {[%emt 0:00:39]} 13. h3 {[%emt 0:05:37]} f6 {[%emt 0:00:48]} 14. Bf4 {[%emt 0:01:01]} Be6 {[%emt 0:05:12]} 15. Qc2 {[%emt 0:04:57]} b5 {[%emt 0:05:13]} 16. Ne3 {[%emt 0:02:02]} c5 {[%emt 0:05:50]} 17. dxc5 {[%emt 0:01:21]} dxc5 {[%emt 0:00:05]} 18. Rad1 {[%emt 0:00:19]} Qc8 {[%emt 0:01:44]} 19. Nd5 {[%emt 0:01:08]} Ng6 {[%emt 0:01:58]} 20. Nh4 {[%emt 0:00:39]} Rf7 {[%emt 0:03:02]} 21. Nxg6 {[%emt 0:00:31]} hxg6 {[%emt 0:00:37]} 22. b3 {[%emt 0:02:19]} Qc6 {[%emt 0:05:28]} 23. Bg3 {[%emt 0:05:19]} Bb8 {[%emt 0:01:01]} 24. Bxb8 {[%emt 0:00:32]} Rxb8 {[%emt 0:00:06]} 25. Nf4 {[%emt 0:00:04]} Rc7 {[%emt 0:05:29]} 26. e5 {[%emt 0:00:50]} f5 {[%emt 0:10:46]} 27. Nxg6 {[%emt 0:06:47]} Rf7 {[%emt 0:00:09]} 28. Qe2 {[%emt 0:01:01]} Ra7 {[%emt 0:04:59]} 29. Qh5 {[%emt 0:01:33]} Qc8 {[%emt 0:00:08]} 30. g4 {[%emt 0:00:29]} 1-0

[Event "12th Asrian Memorial 2019"]
[Site "Yerevan"]
[Date "2019.06.19"]
[Round "9.3"]
[White "Shahinyan, David"]
[Black "Vardanian, Haik G."]
[Result "1/2-1/2"]
[ECO "B23"]
[WhiteElo "2429"]
[BlackElo "2357"]
[Annotator "NA"]
[PlyCount "106"]
[EventDate "2019.06.11"]
[EventType "swiss"]
[EventCountry "ARM"]
[SourceTitle "playchess.com"]
[Source "ChessBase"]
[SourceQuality "1"]
[TimeControl "40/5400+30:1800+30"]

1. e4 {[%emt 0:00:04]} c5 {[%emt 0:00:09]} 2. Nc3 {[%emt 0:00:18]} e6 {[%emt 0:00:14]} 3. g3 {[%emt 0:01:12]} d5 {[%emt 0:00:08]} 4. d3 {[%emt 0:05:36]} Nc6 {[%emt 0:00:14]} 5. Bg2 {[%emt 0:00:19]} d4 {[%emt 0:00:05]} 6. Nce2 {[%emt 0:00:48]} e5 {[%emt 0:00:16]} 7. f4 {[%emt 0:00:36]} Bd6 {[%emt 0:00:11]} 8. Nf3 {[%emt 0:00:23]} h5 {[%emt 0:01:31]} 9. h3 {[%emt 0:01:55]} h4 {[%emt 0:00:57]} 10. g4 {[%emt 0:01:33]} exf4 {[%emt 0:00:31]} 11. Bxf4 {[%emt 0:01:34]} Qc7 {[%emt 0:03:37]} 12. Qd2 {[%emt 0:03:57]} Be6 {[%emt 0:03:45]} 13. Bxd6 {[%emt 0:15:22]} Qxd6 {[%emt 0:00:14]} 14. c3 {[%emt 0:01:20]} Nge7 {[%emt 0:02:19]} 15. cxd4 {[%emt 0:02:11]} cxd4 {[%emt 0:00:53]} 16. O-O {[%emt 0:01:44]} Ng6 {[%emt 0:02:34]} 17. a3 {[%emt 0:06:13]} O-O-O {[%emt 0:05:04]} 18. Rac1 {[%emt 0:01:35]} Kb8 {[%emt 0:00:48]} 19. b4 {[%emt 0:12:26]} Nge5 {[%emt 0:04:37]} 20. Ne1 {[%emt 0:02:07]} f6 {[%emt 0:13:51]} 21. Nc2 {[%emt 0:05:06]} Bb3 {[%emt 0:05:34]} 22. b5 {[%emt 0:03:00]} Ne7 {[%emt 0:02:31]} 23. Ncxd4 {[%emt 0:00:34]} Bf7 {[%emt 0:08:08]} 24. a4 {[%emt 0:06:42]} Rd7 {[%emt 0:03:16]} 25. Rfd1 {[%emt 0:01:39]} Rhd8 {[%emt 0:01:23]} 26. Kh1 {[%emt 0:02:33]} g5 {[%emt 0:01:57]} 27. a5 {[%emt 0:01:01]} N7g6 {[%emt 0:02:21]} 28. Qb2 {[%emt 0:03:14]} Rc7 {[%emt 0:09:13]} 29. Rxc7 {[%emt 0:02:55]} Qxc7 {[%emt 0:00:13]} 30. Rc1 {[%emt 0:01:28]} Qe7 {[%emt 0:04:34]} 31. Qc3 {[%emt 0:04:12]} Qd7 {[%emt 0:06:58]} 32. b6 {[%emt 0:00:11]} axb6 {[%emt 0:00:50]} 33. axb6 {[%emt 0:00:02]} Rc8 {[%emt 0:00:39]} 34. Qa1 {[%emt 0:00:49]} Rxc1+ {[%emt 0:00:09]} 35. Nxc1 {[%emt 0:00:04]} Nc6 {[%emt 0:03:17]} 36. Nb5 {[%emt 0:00:41]} Qd8 {[%emt 0:00:53]} 37. Nc7 {[%emt 0:00:13]} Kc8 {[%emt 0:00:26]} 38. Qa8+ {[%emt 0:00:22]} Kd7 {[%emt 0:02:40]} 39. Qxb7 {[%emt 0:00:27]} Qc8 {[%emt 0:00:35]} 40. Qxc8+ {[%emt 0:00:00]} Kxc8 {[%emt 0:00:00]} 41. Nb5 {[%emt 0:00:24]} Nd8 {[%emt 0:02:50]} 42. Nd6+ {[%emt 0:06:21]} Kd7 {[%emt 0:00:40]} 43. Nxf7 {[%emt 0:00:46]} Nxf7 {[%emt 0:00:05]} 44. Nb3 {[%emt 0:00:05]} Kc6 {[%emt 0:05:16]} 45. Nc5 {[%emt 0:01:11]} Kxb6 {[%emt 0:07:56]} 46. Nd7+ {[%emt 0:01:13]} Kc6 {[%emt 0:01:04]} 47. Nxf6 {[%emt 0:00:43]} Kc5 {[%emt 0:00:19]} 48. Bf1 {[%emt 0:19:33]} Kd4 {[%emt 0:01:04]} 49. Nd5 {[%emt 0:00:24]} Nge5 {[%emt 0:07:40]} 50. Nb4 {[%emt 0:01:00]} Kc3 {[%emt 0:02:11]} 51. Na2+ {[%emt 0:01:04]} Kd4 {[%emt 0:01:33]} 52. Nb4 {[%emt 0:01:30]} Kc3 {[%emt 0:00:11]} 53. Nd5+ {[%emt 0:02:24]} Kd4 {[%emt 0:00:07]} 1/2-1/2

[Event "12th Asrian Memorial 2019"]
[Site "Yerevan"]
[Date "2019.06.19"]
[Round "9.6"]
[White "Mikaelyan, Arman"]
[Black "Andriasian, Zaven"]
[Result "1/2-1/2"]
[ECO "E73"]
[WhiteElo "2453"]
[BlackElo "2600"]
[Annotator "RC"]
[PlyCount "34"]
[EventDate "2019.06.11"]
[EventType "swiss"]
[EventCountry "ARM"]
[SourceTitle "playchess.com"]
[Source "ChessBase"]
[SourceQuality "1"]
[TimeControl "40/5400+30:1800+30"]

1. d4 {[%emt 0:02:51]} Nf6 {[%emt 0:00:00]} 2. c4 {[%emt 0:00:41]} g6 {[%emt 0:00:25]} 3. Nc3 {[%emt 0:01:35]} Bg7 {[%emt 0:00:08]} 4. e4 {[%emt 0:00:21]} d6 {[%emt 0:01:34]} 5. Be2 {[%emt 0:00:10]} O-O {[%emt 0:03:21]} 6. Bg5 {[%emt 0:00:58]} c5 {[%emt 0:01:35]} 7. d5 {[%emt 0:00:44]} e6 {[%emt 0:01:08]} 8. Qd2 {[%emt 0:00:32]} exd5 {[%emt 0:01:19]} 9. exd5 {[%emt 0:00:31]} Re8 {[%emt 0:01:39]} 10. Nf3 {[%emt 0:01:42]} Bg4 {[%emt 0:04:42]} 11. O-O {[%emt 0:00:58]} Nbd7 {[%emt 0:02:53]} 12. h3 {[%emt 0:02:28]} Bxf3 {[%emt 0:01:02]} 13. Bxf3 {[%emt 0:00:04]} a6 {[%emt 0:01:06]} 14. Qc2 {[%emt 0:23:31]} Rb8 {[%emt 0:11:00]} 15. a4 {[%emt 0:01:20]} Qb6 {[%emt 0:01:36]} 16. Bd2 {[%emt 0:04:31]} Re7 {[%emt 0:02:26]} 17. Rfe1 {[%emt 0:02:54]} Ne5 {[%emt 0:09:51]} 1/2-1/2